fUST/lending_fUST_20260408
["ID","MTS","AMOUNT","RATE_DAILY","PERIOD"]
[419979497,1775581845340,-500.0,0.00027397,2]
[419979499,1775581845350,-2188.04,0.00027397,2]
[419979501,1775581845359,-500.0,0.00027397,2]
[419979503,1775581845368,-500.0,0.00027397,2]
[419979505,1775581845378,-500.0,0.00027397,2]
[419979507,1775581845388,-525.00274619,0.00027397,2]
[419979509,1775581845397,-543.07,0.00027397,2]
[419979511,1775581845406,-500.0,0.00027397,2]
[419979513,1775581845416,-586.76,0.00027397,2]
[419979515,1775581845426,-500.0,0.00027397,2]
[419979517,1775581845435,-3455.92,0.00027397,2]
[419979519,1775581845445,-596.26,0.00027397,2]
[419979521,1775581845454,-288.27331699,0.00027397,2]
[419979523,1775581845464,-500.0,0.00027397,2]
[419979524,1775581845473,-500.0,0.00027397,2]
[419979526,1775581845482,-500.0,0.00027397,2]
[419979528,1775581845491,-708.29,0.00027397,2]
[419979530,1775581845500,-500.0,0.00027397,2]
[419979532,1775581845509,-1248.15,0.00027397,2]
[419979534,1775581845518,-500.0,0.00027397,2]
[419979536,1775581845527,-417.99172908,0.00027397,2]
[419979538,1775581845536,-689.66,0.00027397,2]
[419979540,1775581845545,-500.0,0.00027397,2]
[419979542,1775581845554,-500.0,0.00027397,2]
[419979544,1775581845563,-571.54,0.00027397,2]
[419979546,1775581845572,-1587.67,0.00027397,2]
[419979548,1775581845583,-500.0,0.00027397,2]
[419979550,1775581845592,-500.0,0.00027397,2]
[419979552,1775581845602,-500.0,0.00027397,2]
[419979554,1775581845612,-500.0,0.00027397,2]
[419979556,1775581845622,-500.0,0.00027397,2]
[419979557,1775581845631,-500.0,0.00027397,2]
[419979559,1775581845640,-763.58,0.00027397,2]
[419979561,1775581845650,-500.0,0.00027397,2]
[419979563,1775581845660,-599.63,0.00027397,2]
[419979565,1775581845670,-500.0,0.00027397,2]
[419979567,1775581845679,-689.58,0.00027397,2]
[419979569,1775581845688,-500.0,0.00027397,2]
[419979571,1775581845698,-4167.31,0.00027397,2]
[419979573,1775581845708,-500.0,0.00027397,2]
[419979575,1775581845718,-500.0,0.00027397,2]
[419979577,1775581845728,-500.0,0.00027397,2]
[419979579,1775581845739,-2951.68,0.00027397,2]
[419979581,1775581845749,-500.0,0.00027397,2]
[419979583,1775581845758,-542.38727525,0.00027397,2]
[419979585,1775581845767,-1990.24,0.00027397,2]
[419979587,1775581845777,-500.0,0.00027397,2]
[419979589,1775581845787,-500.0,0.00027397,2]
[419979591,1775581845797,-500.0,0.00027397,2]
[419979593,1775581845807,-500.0,0.00027397,2]
[419979595,1775581845816,-1172.99,0.00027397,2]
[419979598,1775581845826,-500.0,0.00027397,2]
[419979601,1775581845835,-922.73,0.00027397,2]
[419979604,1775581845845,-500.0,0.00027397,2]
[419979607,1775581845855,-500.0,0.00027397,2]
[419979610,1775581845865,-500.0,0.00027397,2]
[419979611,1775581845875,-251.59377793,0.00027397,2]
[419979613,1775581845884,-500.0,0.00027397,2]
[419979615,1775581845894,-500.0,0.00027397,2]
[419979617,1775581845904,-622.55,0.00027397,2]
[419979619,1775581845914,-500.0,0.00027397,2]
[419979621,1775581845923,-500.0,0.00027397,2]
[419979623,1775581845933,-500.0,0.00027397,2]
[419979626,1775581845943,-696.79,0.00027397,2]
[419979628,1775581845953,-500.0,0.00027397,2]
[419979630,1775581845962,-536.90304586,0.00027397,2]
[419979632,1775581845971,-500.0,0.00027397,2]
[419979634,1775581845981,-500.0,0.00027397,2]
[419979636,1775581845990,-710.61,0.00027397,2]
[419979638,1775581846000,-211.62876055,0.00027397,2]
[419979640,1775581846009,-511.27,0.00027397,2]
[419979642,1775581846019,-500.0,0.00027397,2]
[419979644,1775581846029,-500.0,0.00027397,2]
[419979646,1775581846039,-500.0,0.00027397,2]
[419979647,1775581846048,-500.0,0.00027397,2]
[419979649,1775581846058,-500.0,0.00027397,2]
[419979651,1775581846068,-500.0,0.00027397,2]
[419979653,1775581846078,-6597.21,0.00027397,2]
[419979655,1775581846088,-500.0,0.00027397,2]
[419979657,1775581846097,-500.0,0.00027397,2]
[419979659,1775581846107,-523.01603292,0.00027397,2]
[419979661,1775581846117,-500.0,0.00027397,2]
[419979663,1775581846128,-756.81,0.00027397,2]
[419979665,1775581846137,-500.0,0.00027397,2]
[419979667,1775581846146,-500.0,0.00027397,2]
[419979668,1775581846156,-500.0,0.00027397,2]
[419979670,1775581846165,-500.0,0.00027397,2]
[419979672,1775581846175,-500.0,0.00027397,2]
[419979674,1775581846184,-1966.65,0.00027397,2]
[419979676,1775581846194,-831.37,0.00027397,2]
[419979678,1775581846204,-500.0,0.00027397,2]
[419979680,1775581846214,-740.63,0.00027397,2]
[419979682,1775581846223,-500.0,0.00027397,2]
[419979684,1775581846233,-500.0,0.00027397,2]
[419979686,1775581846242,-500.0,0.00027397,2]
[419979688,1775581846252,-532.55827531,0.00027397,2]
[419979690,1775581846262,-500.0,0.00027397,2]
[419979692,1775581846271,-500.0,0.00027397,2]
[419979694,1775581846281,-500.0,0.00027397,2]
[419979696,1775581846289,-500.0,0.00027397,2]
[419979698,1775581846298,-1162.77,0.00027397,2]
[419979700,1775581846307,-500.0,0.00027397,2]
[419979702,1775581846315,-500.0,0.00027397,2]
[419979703,1775581846324,-500.0,0.00027397,2]
[419979705,1775581846334,-2851.0,0.00027397,2]
[419979707,1775581846344,-2459.12,0.00027397,2]
[419979709,1775581846354,-500.0,0.00027397,2]
[419979711,1775581846364,-500.0,0.00027397,2]
[419979713,1775581846374,-3913.19,0.00027397,2]
[419979715,1775581846384,-500.0,0.00027397,2]
[419979717,1775581846394,-500.0,0.00027397,2]
[419979719,1775581846404,-500.0,0.00027397,2]
[419979721,1775581846414,-1231.29,0.00027397,2]
[419979723,1775581846424,-500.0,0.00027397,2]
[419979725,1775581846434,-4272.25,0.00027397,2]
[419979727,1775581846444,-500.0,0.00027397,2]
[419979729,1775581846454,-500.0,0.00027397,2]
[419979731,1775581846463,-295.02992093,0.00027397,2]
[419979733,1775581846473,-1251.53,0.00027397,2]
[419979735,1775581846483,-500.0,0.00027397,2]
[419979737,1775581846492,-500.0,0.00027397,2]
[419979738,1775581846502,-2101.14,0.00027397,2]
[419979739,1775581846512,-1220.52,0.00027397,2]
[419979740,1775581846521,-5920.9,0.00027397,2]
[419979741,1775581846530,-500.0,0.00027397,2]
[419979742,1775581846540,-500.0,0.00027397,2]
[419979743,1775581846550,-500.0,0.00027397,2]
[419979744,1775581846560,-500.0,0.00027397,2]
[419979745,1775581846569,-2770.27,0.00027397,2]
[419979746,1775581846578,-500.0,0.00027397,2]
[419979747,1775581846587,-500.0,0.00027397,2]
[419979748,1775581846597,-2832.73,0.00027397,2]
[419979749,1775581846607,-612.84890051,0.00027397,2]
[419979750,1775581846617,-1124.49,0.00027397,2]
[419979751,1775581846627,-650.950018,0.00027397,2]
[419979753,1775581846637,-650.950018,0.00027397,2]
[419979755,1775581846646,-2056.34,0.00027397,2]
[419979757,1775581846656,-500.0,0.00027397,2]
[419979759,1775581846665,-650.950018,0.00027397,2]
[419979761,1775581846675,-650.950018,0.00027397,2]
[419979763,1775581846684,-500.0,0.00027397,2]
[419979765,1775581846694,-5462.01,0.00027397,2]
[419979767,1775581846703,-650.950018,0.00027397,2]
[419979769,1775581846713,-650.950018,0.00027397,2]
[419979771,1775581846724,-623.23,0.00027397,2]
[419979773,1775581846733,-500.0,0.00027397,2]
[419979775,1775581846743,-500.0,0.00027397,2]
[419979777,1775581846752,-650.950018,0.00027397,2]
[419979779,1775581846762,-3570.74,0.00027397,2]
[419979781,1775581846772,-650.950018,0.00027397,2]
[419979783,1775581846782,-500.0,0.00027397,2]
[419979786,1775581846797,-500.0,0.00027397,2]
[419979787,1775581846806,-500.0,0.00027397,2]
[419979790,1775581846816,-500.0,0.00027397,2]
[419979792,1775581846826,-500.0,0.00027397,2]
[419979794,1775581846835,-500.0,0.00027397,2]
[419979795,1775581846845,-1161.92,0.00027397,2]
[419979798,1775581846855,-3423.64,0.00027397,2]
[419979799,1775581846864,-4992.24,0.00027397,2]
[419979802,1775581846875,-1125.83,0.00027397,2]
[419979804,1775581846885,-3582.62,0.00027397,2]
[419979806,1775581846895,-500.0,0.00027397,2]
[419979808,1775581846905,-500.0,0.00027397,2]
[419979810,1775581846915,-500.0,0.00027397,2]
[419979812,1775581846925,-1124.44,0.00027397,2]
[419979814,1775581846934,-500.0,0.00027397,2]
[419979815,1775581846944,-255.74345559,0.00027397,2]
[419979817,1775581846954,-599.49,0.00027397,2]
[419979820,1775581846965,-500.0,0.00027397,2]
[419979822,1775581846976,-714.25,0.00027397,2]
[419979824,1775581846985,-500.0,0.00027397,2]
[419979826,1775581846996,-500.0,0.00027397,2]
[419979828,1775581847006,-645.35867674,0.00027397,2]
[419979830,1775581847015,-761.04,0.00027397,2]
[419979832,1775581847026,-500.0,0.00027397,2]
[419979834,1775581847035,-500.0,0.00027397,2]
[419979835,1775581847045,-500.0,0.00027397,2]
[419979837,1775581847054,-500.0,0.00027397,2]
[419979839,1775581847064,-422.24879339,0.00027397,2]
[419979841,1775581847074,-500.0,0.00027397,2]
[419979843,1775581847085,-2556.21,0.00027397,2]
[419979845,1775581847095,-158.47398136,0.00027397,2]
[419979847,1775581847104,-539.3387319,0.00027397,2]
[419979849,1775581847114,-1106.06,0.00027397,2]
[419979851,1775581847126,-1517.93,0.00027397,2]
[419979853,1775581847135,-2695.1,0.00027397,2]
[419979855,1775581847145,-500.0,0.00027397,2]
[419979857,1775581847155,-500.0,0.00027397,2]
[419979859,1775581847165,-500.0,0.00027397,2]
[419979861,1775581847175,-500.0,0.00027397,2]
[419979863,1775581847185,-500.0,0.00027397,2]
[419979865,1775581847195,-500.0,0.00027397,2]
[419979867,1775581847206,-500.0,0.00027397,2]
[419979869,1775581847215,-342.78289388,0.00027397,2]
[419979871,1775581847224,-549.65764864,0.00027397,2]
[419979873,1775581847233,-1916.15,0.00027397,2]
[419979875,1775581847243,-566.99,0.00027397,2]
[419979877,1775581847252,-2653.69,0.00027397,2]
[419979879,1775581847260,-500.0,0.00027397,2]
[419979881,1775581847269,-769.59,0.00027397,2]
[419979883,1775581847278,-516.81,0.00027397,2]
[419979885,1775581847288,-920.82,0.00027397,2]
[419979887,1775581847298,-488.41271361,0.00027397,2]
[419979889,1775581847308,-500.0,0.00027397,2]
[419979891,1775581847318,-500.0,0.00027397,2]
[419979893,1775581847330,-500.0,0.00027397,2]
[419979895,1775581847339,-500.0,0.00027397,2]
[419979897,1775581847349,-1878.66,0.00027397,2]
[419979899,1775581847358,-530.69797225,0.00027397,2]
[419979901,1775581847368,-500.0,0.00027397,2]
[419979903,1775581847378,-500.0,0.00027397,2]
[419979905,1775581847388,-500.0,0.00027397,2]
[419979907,1775581847397,-500.0,0.00027397,2]
[419979909,1775581847407,-267.88179611,0.00027397,2]
[419979911,1775581847417,-500.0,0.00027397,2]
[419979913,1775581847428,-500.0,0.00027397,2]
[419979915,1775581847437,-500.0,0.00027397,2]
[419979917,1775581847447,-500.0,0.00027397,2]
[419979918,1775581847457,-500.0,0.00027397,2]
[419979920,1775581847467,-1864.24,0.00027397,2]
[419979921,1775581847477,-500.0,0.00027397,2]
[419979924,1775581847487,-500.0,0.00027397,2]
[419979926,1775581847498,-151.0,0.00027397,2]
[419979927,1775581847508,-151.0,0.00027397,2]
[419979929,1775581847518,-736.66,0.00027397,2]
[419979932,1775581847529,-1085.34,0.00027397,2]
[419979934,1775581847538,-4641.07,0.00027397,2]
[419979936,1775581847547,-151.0,0.00027397,2]
[419979938,1775581847557,-151.0,0.00027397,2]
[419979940,1775581847566,-500.0,0.00027397,2]
[419979942,1775581847576,-993.48,0.00027397,2]
[419979944,1775581847585,-151.0,0.00027397,2]
[419979946,1775581847595,-151.0,0.00027397,2]
[419979948,1775581847604,-500.0,0.00027397,2]
[419979950,1775581847613,-500.0,0.00027397,2]
[419979952,1775581847622,-2015.65,0.00027397,2]
[419979954,1775581847632,-1027.50133,0.00027397,2]
[419979955,1775581847642,-1027.50133,0.00027397,2]
[419979958,1775581847652,-500.0,0.00027397,2]
[419979960,1775581847662,-500.0,0.00027397,2]
[419979962,1775581847671,-500.0,0.00027397,2]
[419979964,1775581847680,-1027.50133,0.00027397,2]
[419979966,1775581847689,-1027.50133,0.00027397,2]
[419979968,1775581847698,-1225.28,0.00027397,2]
[419979970,1775581847708,-500.0,0.00027397,2]
[419979972,1775581847717,-1027.50133,0.00027397,2]
[419979974,1775581847727,-1027.50133,0.00027397,2]
[419979976,1775581847736,-2942.93,0.00027397,2]
[419979978,1775581847746,-500.0,0.00027397,2]
[419979980,1775581847755,-1027.50133,0.00027397,2]
[419979981,1775581847765,-1027.501335,0.00027397,2]
[419979984,1775581847774,-1015.11,0.00027397,2]
[419979985,1775581847784,-513.69,0.00027397,2]
[419979987,1775581847793,-554.9,0.00027397,2]
[419979989,1775581847802,-865.97,0.00027397,2]
[419979991,1775581847812,-500.0,0.00027397,2]
[419979993,1775581847821,-500.0,0.00027397,2]
[419979995,1775581847830,-500.0,0.00027397,2]
[419979997,1775581847839,-500.0,0.00027397,2]
[419979999,1775581847849,-500.0,0.00027397,2]
[419980001,1775581847859,-1279.07,0.00027397,2]
[419980003,1775581847868,-500.0,0.00027397,2]
[419980005,1775581847878,-3471.08,0.00027397,2]
[419980007,1775581847888,-1182.04,0.00027397,2]
[419980009,1775581847899,-500.0,0.00027397,2]
[419980011,1775581847908,-500.0,0.00027397,2]
[419980013,1775581847918,-3231.68,0.00027397,2]
[419980015,1775581847928,-500.0,0.00027397,2]
[419980017,1775581847938,-500.0,0.00027397,2]
[419980019,1775581847948,-500.0,0.00027397,2]
[419980021,1775581847958,-500.0,0.00027397,2]
[419980023,1775581847968,-1036.77,0.00027397,2]
[419980025,1775581847978,-979.51,0.00027397,2]
[419980027,1775581847988,-500.0,0.00027397,2]
[419980029,1775581847997,-163.27207873,0.00027397,2]
[419980031,1775581848007,-500.0,0.00027397,2]
[419980032,1775581848016,-500.0,0.00027397,2]
[419980034,1775581848025,-1034.26,0.00027397,2]
[419980036,1775581848034,-500.0,0.00027397,2]
[419980038,1775581848043,-587.04,0.00027397,2]
[419980040,1775581848052,-551.14825848,0.00027397,2]
[419980042,1775581848061,-502.81,0.00027397,2]
[419980044,1775581848070,-500.0,0.00027397,2]
[419980046,1775581848080,-502.45,0.00027397,2]
[419980048,1775581848089,-1279.49,0.00027397,2]
[419980050,1775581848098,-590.67,0.00027397,2]
[419980052,1775581848108,-500.0,0.00027397,2]
[419980053,1775581848117,-5664.01,0.00027397,2]
[419980055,1775581848127,-500.0,0.00027397,2]
[419980057,1775581848136,-1694.75,0.00027397,2]
[419980059,1775581848146,-500.0,0.00027397,2]
[419980061,1775581848155,-500.0,0.00027397,2]
[419980063,1775581848165,-500.0,0.00027397,2]
[419980065,1775581848174,-500.0,0.00027397,2]
[419980067,1775581848183,-500.0,0.00027397,2]
[419980069,1775581848192,-500.0,0.00027397,2]
[419980071,1775581848202,-500.0,0.00027397,2]
[419980073,1775581848211,-500.0,0.00027397,2]
[419980075,1775581848221,-500.0,0.00027397,2]
[419980077,1775581848230,-1525.02,0.00027397,2]
[419980079,1775581848241,-500.0,0.00027397,2]
[419980081,1775581848250,-500.0,0.00027397,2]
[419980083,1775581848259,-500.0,0.00027397,2]
[419980085,1775581848268,-500.0,0.00027397,2]
[419980087,1775581848278,-500.0,0.00027397,2]
[419980089,1775581848288,-611.89906253,0.00027397,2]
[419980091,1775581848297,-500.0,0.00027397,2]
[419980093,1775581848306,-500.0,0.00027397,2]
[419980095,1775581848315,-500.0,0.00027397,2]
[419980097,1775581848324,-4749.7,0.00027397,2]
[419980099,1775581848334,-500.0,0.00027397,2]
[419980101,1775581848343,-500.0,0.00027397,2]
[419980103,1775581848353,-776.85,0.00027397,2]
[419980105,1775581848362,-500.0,0.00027397,2]
[419980107,1775581848372,-500.0,0.00027397,2]
[419980109,1775581848381,-456.80644292,0.00027397,2]
[419980111,1775581848390,-786.37,0.00027397,2]
[419980113,1775581848400,-500.0,0.00027397,2]
[419980115,1775581848409,-500.0,0.00027397,2]
[419980117,1775581848418,-1169.37,0.00027397,2]
[419980119,1775581848427,-500.0,0.00027397,2]
[419980121,1775581848436,-678.21,0.00027397,2]
[419980123,1775581848447,-6095.91,0.00027397,2]
[419980124,1775581848456,-1207.56,0.00027397,2]
[419980126,1775581848466,-500.0,0.00027397,2]
[419980128,1775581848476,-800.79,0.00027397,2]
[419980130,1775581848485,-500.0,0.00027397,2]
[419980132,1775581848495,-500.0,0.00027397,2]
[419980134,1775581848504,-500.0,0.00027397,2]
[419980136,1775581848514,-500.0,0.00027397,2]
[419980138,1775581848524,-3431.27,0.00027397,2]
[419980140,1775581848533,-4068.19,0.00027397,2]
[419980142,1775581848542,-503.64424898,0.00027397,2]
[419980144,1775581848551,-425.34547416,0.00027397,2]
[419980197,1775581849065,-5000.0,0.00012478,2]
[419980199,1775581849075,-1000.0,0.00019726,2]
[419980201,1775581849085,-425.0,0.0002396,10]
[419980203,1775581849095,-925.10452584,0.00027397,2]
[419980205,1775581849105,-500.0,0.00027397,2]
[419980207,1775581849114,-2723.97,0.00027397,2]
[419980209,1775581849124,-1264.54,0.00027397,2]
[419980211,1775581849134,-151.66833597,0.00027397,2]
[419980213,1775581849144,-500.0,0.00027397,2]
[419980215,1775581849153,-500.0,0.00027397,2]
[419980217,1775581849165,-166.04,0.00027397,2]
[419980219,1775581849175,-500.0,0.00027397,2]
[419980221,1775581849185,-4473.43,0.00027397,2]
[419980223,1775581849194,-509.95,0.00027397,2]
[419980225,1775581849204,-500.0,0.00027397,2]
[419980227,1775581849214,-500.0,0.00027397,2]
[419980229,1775581849223,-1791.51,0.00027397,2]
[419980231,1775581849233,-365.64144551,0.00027397,2]
[419980263,1775581849527,-134.35855449,0.00027397,2]
[419980265,1775581849537,-500.0,0.00027397,2]
[419980267,1775581849546,-500.0,0.00027397,2]
[419980269,1775581849556,-649.0,0.00027397,2]
[419980271,1775581849565,-41.72215178,0.00027397,2]
[419980328,1775581850119,-1000.0,0.00019726,2]
[419980330,1775581850128,-1000.0,0.00019726,2]
[419980332,1775581850138,-573.83665415,0.0002093,2]
[419980334,1775581850148,-160.0,0.00025341,14]
[419980336,1775581850158,-247.690809,0.00025341,14]
[419980338,1775581850168,-335.381619,0.00025341,14]
[419980340,1775581850178,-3723.62064556,0.00027397,2]
[419980342,1775581850190,-382.56720266,0.00027397,2]
[419980344,1775581850199,-1149.72,0.00027397,2]
[419980346,1775581850209,-500.0,0.00027397,2]
[419980348,1775581850218,-1429.61597733,0.00027397,2]
[419980352,1775581850248,-11078.75402267,0.00027397,2]
[419980354,1775581850259,-500.0,0.00027397,2]
[419980356,1775581850268,-500.0,0.00027397,2]
[419980358,1775581850278,-2494.80461912,0.00027397,2]
[419980360,1775581850290,-1536.19538088,0.00027397,2]
[419980362,1775581850300,-1900.1,0.00027397,2]
[419980364,1775581850310,-500.0,0.00027397,2]
[419980366,1775581850319,-500.0,0.00027397,2]
[419980368,1775581850330,-686.61,0.00027397,2]
[419980370,1775581850340,-532.137083,0.00027397,2]
[419980373,1775581850349,-500.0,0.00027397,2]
[419980375,1775581850360,-500.0,0.00027397,2]
[419980376,1775581850371,-1165.25,0.00027397,2]
[419980378,1775581850381,-500.0,0.00027397,2]
[419980380,1775581850390,-500.0,0.00027397,2]
[419980382,1775581850400,-500.0,0.00027397,2]
[419980384,1775581850410,-641.9,0.00027397,2]
[419980386,1775581850420,-500.0,0.00027397,2]
[419980388,1775581850430,-526.1637096,0.00027397,2]
[419980390,1775581850440,-500.0,0.00027397,2]
[419980392,1775581850450,-500.0,0.00027397,2]
[419980394,1775581850460,-560.62,0.00027397,2]
[419980396,1775581850469,-500.0,0.00027397,2]
[419980398,1775581850478,-1069.0,0.00027397,10]
[419980400,1775581850488,-535.6,0.00027397,2]
[419980402,1775581850497,-592.15975811,0.000274,2]
[419980404,1775581850507,-395350.91436529,0.00027444,2]
[419980406,1775581850518,-2073.27624964,0.00027444,2]
[419980471,1775581875841,-500.0,0.00034519,120]
[419980472,1775581875870,-3000.0,0.00034519,120]
[419980473,1775581875899,-543.4714,0.00034519,120]
[419980474,1775581875929,-543.4714,0.00034519,120]
[419980475,1775581875957,-421.5299,0.00034519,120]
[419980476,1775581875985,-3000.0,0.00034519,120]
[419980477,1775581876014,-3055.699432,0.00034519,120]
[419980478,1775581876043,-1380.7898886,0.00034519,120]
[419980479,1775581876071,-650.99245307,0.00034519,120]
[419980480,1775581876100,-580.75923692,0.00034519,120]
[419980481,1775581876128,-1077.60830412,0.00034519,120]
[419980482,1775581876157,-1035.0693203,0.00034519,120]
[419980483,1775581876184,-200.0,0.00034519,120]
[419980484,1775581876210,-162.92258198,0.00034519,120]
[419980485,1775581876237,-3253.91270468,0.00034519,120]
[419980486,1775581876266,-1126.86020763,0.00034519,120]
[419980487,1775581876295,-980.88194709,0.00034519,120]
[419980488,1775581876323,-601.74437247,0.00034519,120]
[419980489,1775581876350,-2000.0,0.00034519,120]
[419980490,1775581876378,-738.83706251,0.00034519,120]
[419980491,1775581876406,-3408.52031213,0.00034519,120]
[419980492,1775581876436,-500.0,0.00034519,120]
[419980493,1775581876463,-500.0,0.00034519,120]
[419980494,1775581876490,-2285.33155714,0.00034519,120]
[419980495,1775581876517,-293.89817201,0.00034519,120]
[419980496,1775581876545,-4743.00811271,0.00034519,120]
[419980497,1775581876574,-412.91182268,0.00034519,120]
[419980498,1775581876602,-1033.81967595,0.00034519,120]
[419980499,1775581876630,-981.31526591,0.00034519,120]
[419980500,1775581876659,-740.78184694,0.00034519,120]
[419980501,1775581876687,-743.00164332,0.00034519,120]
[419980502,1775581876715,-2300.0,0.00034519,120]
[419980503,1775581876744,-3304.83067104,0.00034519,120]
[419980504,1775581876772,-1184.30527944,0.00034519,120]
[419980505,1775581876799,-1316.65493885,0.00034519,120]
[419980506,1775581876826,-1461.44848118,0.00034519,120]
[419980507,1775581876854,-2810.56534532,0.00034519,120]
[419980508,1775581876882,-1079.9011882,0.00034519,120]
[419980509,1775581876911,-1542.12915123,0.00034519,120]
[419980510,1775581876939,-944.31792773,0.00034519,120]
[419980511,1775581876967,-1616.47300858,0.00034519,120]
[419980512,1775581876995,-230.55421387,0.00034519,120]
[419980513,1775581877022,-559.49533196,0.00034519,120]
[419980514,1775581877050,-338.27302696,0.00034519,120]
[419980515,1775581877079,-481.89269717,0.00034519,120]
[419980516,1775581877107,-2134.40823088,0.00034519,120]
[419980517,1775581877135,-1061.61341624,0.00034519,120]
[419980518,1775581877163,-1703.02785123,0.00034519,120]
[419980519,1775581877191,-191.16808615,0.00034519,120]
[419980520,1775581877219,-2789.24542107,0.00034519,120]
[419980521,1775581877247,-377.99068954,0.00034519,120]
[419980522,1775581877276,-367.6996461,0.00034519,120]
[419980523,1775581877305,-1882.90778389,0.00034519,120]
[419980524,1775581877333,-1578.20659463,0.00034519,120]
[419980525,1775581877361,-182.17068771,0.00034519,120]
[419980526,1775581877389,-565.45172457,0.00034519,120]
[419980527,1775581877417,-521.21835766,0.00034519,120]
[419980528,1775581877445,-2089.98419367,0.00034519,120]
[419980529,1775581877471,-478.45539954,0.00034519,120]
[419980530,1775581877497,-204.23350451,0.00034519,120]
[419980531,1775581877523,-167.02814264,0.00034519,120]
[419980532,1775581877845,-2360.64534426,0.00034519,120]
[419980533,1775581877876,-2000.0,0.00034519,120]
[419980534,1775581877903,-2000.0,0.00034519,120]
[419980535,1775581877933,-2000.0,0.00034519,120]
[419980536,1775581877963,-2000.0,0.00034519,120]
[419980537,1775581877993,-2000.0,0.00034519,120]
[419980538,1775581878024,-2000.0,0.00034519,120]
[419980539,1775581878058,-2000.0,0.00034519,120]
[419980540,1775581878090,-2000.0,0.00034519,120]
[419980541,1775581878121,-680.48339826,0.00034519,120]
[419980542,1775581878152,-1394.0,0.00034519,120]
[419980543,1775581878182,-4989.06401532,0.00034519,120]
[419980544,1775581878208,-3981.46187638,0.00034519,120]
[419980545,1775581878235,-5332.78155719,0.00034519,120]
[419980546,1775581878262,-4459.48717165,0.00034519,120]
[419980547,1775581878290,-3712.58815348,0.00034519,120]
[419980548,1775581878318,-5518.81394744,0.00034519,120]
[419980549,1775581878345,-4545.94046283,0.00034519,120]
[419980550,1775581878377,-3667.53484288,0.00034519,120]
[419980551,1775581878404,-4545.797904,0.00034519,120]
[419980552,1775581878432,-5081.30920874,0.00034519,120]
[419980553,1775581878460,-5039.58354996,0.00034519,120]
[419980554,1775581878487,-11392.18687521,0.00034519,120]
[419980555,1775581878515,-3000.0,0.00034519,120]
[419980556,1775581878542,-400.0,0.00034519,120]
[419980557,1775581878573,-5000.0,0.00034519,120]
[419980558,1775581878601,-10000.0,0.00034519,120]
[419980559,1775581878631,-10000.0,0.00034519,120]
[419980560,1775581878662,-271.18727638,0.00034519,120]
[419980561,1775581878690,-2000.0,0.00034519,120]
[419980562,1775581878720,-100000.0,0.00034519,120]
[419980563,1775581878749,-178.0,0.00034519,120]
[419980564,1775581878777,-1000.0,0.00034519,120]
[419980565,1775581878806,-1000.0,0.00034519,120]
[419980566,1775581878835,-1000.0,0.00034519,120]
[419980567,1775581878864,-1000.0,0.00034519,120]
[419980568,1775581878894,-1000.0,0.00034519,120]
[419980569,1775581878923,-1000.0,0.00034519,120]
[419980570,1775581878952,-1000.0,0.00034519,120]
[419980571,1775581878981,-1000.0,0.00034519,120]
[419980572,1775581879010,-1000.0,0.00034519,120]
[419980573,1775581879037,-1000.0,0.00034519,120]
[419980574,1775581879066,-1000.0,0.00034519,120]